[Event "Early-Titled-Tuesday-Blitz-May-14-2024"]
[Site "Chess.com"]
[Date "2024.05.14"]
[Round "2"]
[White "Levanzovsky"]
[Black "AradNazari"]
[Result "0-1"]
[WhiteElo "2560"]
[BlackElo "2812"]
[TimeControl "180+1"]
[EndTime "8:18:28 PDT"]
[Termination "AradNazari won on time"]

1. e4 {[%clk 0:02:59.7]} 1... c5 {[%clk 0:02:53.8]} 2. Nf3 {[%clk 0:02:59]} 2...
d6 {[%clk 0:02:53.7]} 3. d4 {[%clk 0:02:57.9]} 3... cxd4 {[%clk 0:02:54.6]} 4.
Nxd4 {[%clk 0:02:57.7]} 4... Nf6 {[%clk 0:02:55.2]} 5. Nc3 {[%clk 0:02:58.1]}
5... a6 {[%clk 0:02:55.8]} 6. Be2 {[%clk 0:02:46.7]} 6... e5 {[%clk 0:02:48.1]}
7. Nb3 {[%clk 0:02:45.7]} 7... Be7 {[%clk 0:02:45.4]} 8. Be3 {[%clk 0:02:45.4]}
8... O-O {[%clk 0:02:44.1]} 9. g4 {[%clk 0:02:44.6]} 9... Be6 {[%clk 0:02:39.3]}
10. g5 {[%clk 0:02:43.7]} 10... Nfd7 {[%clk 0:02:39.8]} 11. h4 {[%clk 0:02:43]}
11... Nc6 {[%clk 0:02:32.9]} 12. Qd2 {[%clk 0:02:36.1]} 12... b5 {[%clk
0:02:28.5]} 13. O-O-O {[%clk 0:02:34.2]} 13... Nb6 {[%clk 0:02:14.3]} 14. Kb1
{[%clk 0:02:24.7]} 14... Nc4 {[%clk 0:02:08.6]} 15. Bxc4 {[%clk 0:02:24.4]}
15... bxc4 {[%clk 0:02:09.5]} 16. Nc1 {[%clk 0:02:21.8]} 16... Rb8 {[%clk
0:01:59.5]} 17. N1e2 {[%clk 0:02:11.8]} 17... Qc8 {[%clk 0:01:53]} 18. Ka1
{[%clk 0:02:10.3]} 18... Qb7 {[%clk 0:01:43.1]} 19. Rb1 {[%clk 0:02:09.4]} 19...
Nb4 {[%clk 0:01:33.7]} 20. f4 {[%clk 0:01:49]} 20... Bg4 {[%clk 0:01:22.8]} 21.
a3 {[%clk 0:01:44.8]} 21... a5 {[%clk 0:01:22.4]} 22. Ng3 {[%clk 0:01:31]} 22...
Rfd8 {[%clk 0:01:18.8]} 23. h5 {[%clk 0:01:22.1]} 23... d5 {[%clk 0:01:14.6]}
24. exd5 {[%clk 0:01:20.6]} 24... Nxd5 {[%clk 0:01:11.6]} 25. Nxd5 {[%clk
0:01:18.7]} 25... Rxd5 {[%clk 0:01:11.4]} 26. Qc3 {[%clk 0:01:16.5]} 26... Bb4
{[%clk 0:00:52.7]} 27. Qxc4 {[%clk 0:01:15.1]} 27... Be6 {[%clk 0:00:51]} 28. f5
{[%clk 0:01:10.4]} 28... Bd7 {[%clk 0:00:23.1]} 29. g6 {[%clk 0:00:55.8]} 29...
Bb5 {[%clk 0:00:20.7]} 30. Qb3 {[%clk 0:00:48.1]} 30... Rc8 {[%clk 0:00:20.5]}
31. Rh4 {[%clk 0:00:38.7]} 31... Be7 {[%clk 0:00:17.1]} 32. gxf7+ {[%clk
0:00:35.2]} 32... Kf8 {[%clk 0:00:16.1]} 33. c4 {[%clk 0:00:33.9]} 33... a4
{[%clk 0:00:15.3]} 34. Qc3 {[%clk 0:00:24.7]} 34... Bxh4 {[%clk 0:00:15.5]} 35.
Ne4 {[%clk 0:00:17.9]} 35... Rxc4 {[%clk 0:00:14.8]} 36. Qa5 {[%clk 0:00:06.5]}
36... Rxe4 {[%clk 0:00:13.6]} 37. Bd2 {[%clk 0:00:03.9]} 37... Kxf7 {[%clk
0:00:13.6]} 0-1

[Event "Early-Titled-Tuesday-Blitz-May-14-2024"]
[Site "Chess.com"]
[Date "2024.05.14"]
[Round "2"]
[White "laysa_latifah"]
[Black "ernestina08chess"]
[Result "1-0"]
[WhiteElo "2531"]
[BlackElo "2291"]
[TimeControl "180+1"]
[EndTime "8:18:28 PDT"]
[Termination "laysa_latifah won by resignation"]

1. e4 {[%clk 0:03:00.9]} 1... c5 {[%clk 0:02:58.6]} 2. Nf3 {[%clk 0:02:57.9]}
2... d6 {[%clk 0:02:58]} 3. c3 {[%clk 0:02:56.4]} 3... Nf6 {[%clk 0:02:57.3]} 4.
h3 {[%clk 0:02:56]} 4... Nc6 {[%clk 0:02:57.3]} 5. Bd3 {[%clk 0:02:55.1]} 5...
e6 {[%clk 0:02:55.2]} 6. O-O {[%clk 0:02:54.9]} 6... Be7 {[%clk 0:02:54.7]} 7.
Bc2 {[%clk 0:02:55]} 7... O-O {[%clk 0:02:38.4]} 8. d4 {[%clk 0:02:47.7]} 8...
cxd4 {[%clk 0:02:38.4]} 9. cxd4 {[%clk 0:02:48.6]} 9... Nb4 {[%clk 0:02:38.9]}
10. Nc3 {[%clk 0:02:47.7]} 10... Nxc2 {[%clk 0:02:38.9]} 11. Qxc2 {[%clk
0:02:48.6]} 11... b6 {[%clk 0:02:30.1]} 12. e5 {[%clk 0:02:38.8]} 12... dxe5
{[%clk 0:02:23.8]} 13. dxe5 {[%clk 0:02:39.7]} 13... Nd5 {[%clk 0:02:21.9]} 14.
Nxd5 {[%clk 0:02:33.2]} 14... Qxd5 {[%clk 0:02:17.6]} 15. Rd1 {[%clk 0:02:32.6]}
15... Qc5 {[%clk 0:02:06.3]} 16. Qe4 {[%clk 0:02:32.2]} 16... Rb8 {[%clk
0:02:04.6]} 17. Bg5 {[%clk 0:02:24.1]} 17... Bb7 {[%clk 0:01:54.2]} 18. Qh4
{[%clk 0:02:23.6]} 18... Bxg5 {[%clk 0:01:45.5]} 19. Nxg5 {[%clk 0:02:24.5]}
19... h6 {[%clk 0:01:45.7]} 20. Ne4 {[%clk 0:02:13.7]} 20... Qxe5 {[%clk
0:01:37.5]} 21. Nc3 {[%clk 0:02:09.5]} 21... Rbc8 {[%clk 0:01:23.4]} 22. Rd7
{[%clk 0:02:04.9]} 22... Rc7 {[%clk 0:01:08.3]} 23. Qe7 {[%clk 0:01:57.9]} 23...
Rxd7 {[%clk 0:01:03.1]} 24. Qxd7 {[%clk 0:01:58.8]} 24... Ba8 {[%clk 0:00:39.9]}
25. Qd3 {[%clk 0:01:31.9]} 25... Qg5 {[%clk 0:00:34.8]} 26. f3 {[%clk
0:01:31.2]} 26... Qc5+ {[%clk 0:00:34.3]} 27. Kh1 {[%clk 0:01:30.5]} 27... Rc8
{[%clk 0:00:18.1]} 28. Rd1 {[%clk 0:01:27.8]} 28... Bc6 {[%clk 0:00:14.6]} 29.
a3 {[%clk 0:01:16.6]} 29... Qe7 {[%clk 0:00:14.8]} 30. Ne2 {[%clk 0:01:14.7]}
30... Rc7 {[%clk 0:00:15.1]} 31. Nd4 {[%clk 0:01:11.5]} 31... Bd5 {[%clk
0:00:13.8]} 32. Nb5 {[%clk 0:01:09.6]} 32... Rd7 {[%clk 0:00:08.2]} 33. Qc2
{[%clk 0:01:03.5]} 33... Qd8 {[%clk 0:00:08.4]} 34. Rc1 {[%clk 0:00:50.6]} 34...
a6 {[%clk 0:00:09]} 35. Nc3 {[%clk 0:00:48.4]} 35... Rc7 {[%clk 0:00:08.7]} 36.
Qd3 {[%clk 0:00:47.3]} 36... Qc8 {[%clk 0:00:08.4]} 37. Rd1 {[%clk 0:00:46]}
37... Rd7 {[%clk 0:00:07.3]} 38. Qd4 {[%clk 0:00:41.7]} 38... b5 {[%clk
0:00:05.9]} 39. Qb6 {[%clk 0:00:38.7]} 39... Qd8 {[%clk 0:00:02.8]} 40. Qxa6
{[%clk 0:00:34.8]} 40... Kh7 {[%clk 0:00:03.4]} 41. Qxb5 {[%clk 0:00:30.5]}
41... Rb7 {[%clk 0:00:03.4]} 42. Qxb7 {[%clk 0:00:29.4]} 1-0

[Event "Early-Titled-Tuesday-Blitz-May-14-2024"]
[Site "Chess.com"]
[Date "2024.05.14"]
[Round "2"]
[White "GothamChess"]
[Black "Nechitaylo_Nikita"]
[Result "1-0"]
[WhiteElo "2726"]
[BlackElo "2356"]
[TimeControl "180+1"]
[EndTime "8:18:31 PDT"]
[Termination "GothamChess won by resignation"]

1. e4 {[%clk 0:03:00.9]} 1... c5 {[%clk 0:02:59.7]} 2. Nc3 {[%clk 0:03:00.7]}
2... Nc6 {[%clk 0:02:59.3]} 3. Bb5 {[%clk 0:03:00.3]} 3... Nd4 {[%clk
0:02:58.6]} 4. Nf3 {[%clk 0:03:00.6]} 4... Nxb5 {[%clk 0:02:57.9]} 5. Nxb5
{[%clk 0:03:01.5]} 5... d6 {[%clk 0:02:55]} 6. d4 {[%clk 0:03:00.9]} 6... cxd4
{[%clk 0:02:51.3]} 7. Qxd4 {[%clk 0:02:59.4]} 7... Nf6 {[%clk 0:02:44.4]} 8. O-O
{[%clk 0:02:52.8]} 8... Bd7 {[%clk 0:02:40]} 9. Nc3 {[%clk 0:02:48.2]} 9... Bc6
{[%clk 0:02:38.2]} 10. Re1 {[%clk 0:02:45.5]} 10... g6 {[%clk 0:02:35.9]} 11.
Nd5 {[%clk 0:02:17.8]} 11... Bg7 {[%clk 0:02:20.2]} 12. Bg5 {[%clk 0:02:13.9]}
12... Bxd5 {[%clk 0:01:33.7]} 13. exd5 {[%clk 0:02:12.8]} 13... O-O {[%clk
0:01:34.3]} 14. Rad1 {[%clk 0:01:56.2]} 14... Re8 {[%clk 0:01:24.1]} 15. Qb4
{[%clk 0:01:45.4]} 15... Qb6 {[%clk 0:01:16.6]} 16. Qxb6 {[%clk 0:01:37.1]}
16... axb6 {[%clk 0:01:17.5]} 17. a3 {[%clk 0:01:36.3]} 17... Rac8 {[%clk
0:01:09.5]} 18. c3 {[%clk 0:01:07.5]} 18... Rc5 {[%clk 0:00:44.6]} 19. Bxf6
{[%clk 0:00:55.9]} 19... Bxf6 {[%clk 0:00:45.5]} 20. Re4 {[%clk 0:00:55.5]}
20... b5 {[%clk 0:00:27.5]} 21. Rb4 {[%clk 0:00:44.3]} 21... Ra8 {[%clk
0:00:27.4]} 22. Kf1 {[%clk 0:00:38.2]} 22... Ra4 {[%clk 0:00:23.5]} 23. Ke2
{[%clk 0:00:36.3]} 23... Kf8 {[%clk 0:00:11.6]} 24. Ne1 {[%clk 0:00:33.6]} 24...
Ke8 {[%clk 0:00:04.8]} 25. Nc2 {[%clk 0:00:33.6]} 25... Kd7 {[%clk 0:00:03.5]}
26. Ne3 {[%clk 0:00:32.1]} 26... Rxb4 {[%clk 0:00:03]} 27. axb4 {[%clk 0:00:32]}
27... Rc8 {[%clk 0:00:03.1]} 28. Ra1 {[%clk 0:00:31.6]} 28... Kc7 {[%clk
0:00:03]} 29. Kd3 {[%clk 0:00:28.9]} 29... Kb6 {[%clk 0:00:02.9]} 30. f4 {[%clk
0:00:27.2]} 30... h5 {[%clk 0:00:02.5]} 31. g3 {[%clk 0:00:27.3]} 31... Rc7
{[%clk 0:00:02.2]} 32. Ra8 {[%clk 0:00:26.1]} 32... e6 {[%clk 0:00:02.9]} 33.
Rf8 {[%clk 0:00:21.1]} 33... e5 {[%clk 0:00:02.7]} 34. f5 {[%clk 0:00:18]} 34...
g5 {[%clk 0:00:02.7]} 35. h3 {[%clk 0:00:16.3]} 35... h4 {[%clk 0:00:02.6]} 36.
gxh4 {[%clk 0:00:13.9]} 36... gxh4 {[%clk 0:00:03.5]} 37. Ng4 {[%clk 0:00:14.5]}
37... Bg5 {[%clk 0:00:04]} 38. f6 {[%clk 0:00:13]} 38... Rc4 {[%clk 0:00:03.3]}
39. Rxf7 {[%clk 0:00:13.3]} 39... e4+ {[%clk 0:00:03.9]} 40. Ke2 {[%clk
0:00:12.9]} 40... Rc7 {[%clk 0:00:03.1]} 41. Rxc7 {[%clk 0:00:11.5]} 41... Kxc7
{[%clk 0:00:04]} 42. f7 {[%clk 0:00:09.4]} 42... Be7 {[%clk 0:00:04.3]} 43. Nf6
{[%clk 0:00:08.5]} 43... Kd8 {[%clk 0:00:01.9]} 44. Nh7 {[%clk 0:00:08.3]} 44...
Bf8 {[%clk 0:00:02.1]} 45. Nxf8 {[%clk 0:00:08.5]} 45... Ke7 {[%clk 0:00:03]}
46. Ng6+ {[%clk 0:00:08.7]} 46... Kxf7 {[%clk 0:00:03.9]} 47. Nxh4 {[%clk
0:00:09.4]} 1-0

[Event "Early-Titled-Tuesday-Blitz-May-14-2024"]
[Site "Chess.com"]
[Date "2024.05.14"]
[Round "2"]
[White "jraosam"]
[Black "Athanasios2"]
[Result "0-1"]
[WhiteElo "2054"]
[BlackElo "2676"]
[TimeControl "180+1"]
[EndTime "8:18:32 PDT"]
[Termination "Athanasios2 won by checkmate"]

1. e4 {[%clk 0:03:00.9]} 1... c5 {[%clk 0:02:59.2]} 2. Nc3 {[%clk 0:03:00.5]}
2... Nc6 {[%clk 0:02:55.2]} 3. g3 {[%clk 0:02:59.7]} 3... g6 {[%clk 0:02:55.1]}
4. Bg2 {[%clk 0:02:59.6]} 4... Bg7 {[%clk 0:02:55.8]} 5. d3 {[%clk 0:02:59.4]}
5... Nf6 {[%clk 0:02:56.4]} 6. h3 {[%clk 0:02:58.8]} 6... O-O {[%clk 0:02:55.4]}
7. Be3 {[%clk 0:02:59.3]} 7... b6 {[%clk 0:02:51.5]} 8. Qd2 {[%clk 0:02:59.6]}
8... Bb7 {[%clk 0:02:51.9]} 9. Nge2 {[%clk 0:02:58.3]} 9... e6 {[%clk
0:02:52.3]} 10. O-O {[%clk 0:02:53.3]} 10... d5 {[%clk 0:02:52.5]} 11. exd5
{[%clk 0:02:53.4]} 11... Nxd5 {[%clk 0:02:45.9]} 12. Nxd5 {[%clk 0:02:48.5]}
12... exd5 {[%clk 0:02:46.8]} 13. d4 {[%clk 0:02:48.9]} 13... cxd4 {[%clk
0:02:41.6]} 14. Nxd4 {[%clk 0:02:47.4]} 14... Ne5 {[%clk 0:02:42.3]} 15. b3
{[%clk 0:02:38]} 15... Rc8 {[%clk 0:02:41]} 16. Rad1 {[%clk 0:02:37.8]} 16...
Qe7 {[%clk 0:02:38.4]} 17. Rfe1 {[%clk 0:02:28.8]} 17... Rfe8 {[%clk 0:02:37]}
18. Bh6 {[%clk 0:02:26.8]} 18... Qa3 {[%clk 0:02:30]} 19. Bxg7 {[%clk
0:02:22.7]} 19... Kxg7 {[%clk 0:02:30.9]} 20. Qg5 {[%clk 0:02:10]} 20... f6
{[%clk 0:01:46.9]} 21. Nf5+ {[%clk 0:02:09.3]} 21... Kf7 {[%clk 0:01:46.2]} 22.
Qh6 {[%clk 0:01:42.4]} 22... gxf5 {[%clk 0:01:19.8]} 23. Qxh7+ {[%clk
0:01:41.7]} 23... Kf8 {[%clk 0:01:20.1]} 24. Qxb7 {[%clk 0:01:38.7]} 24... Rxc2
{[%clk 0:01:11.5]} 25. Bxd5 {[%clk 0:01:23.7]} 25... Qc5 {[%clk 0:01:09.9]} 26.
Rf1 {[%clk 0:01:12.1]} 26... Qe7 {[%clk 0:00:58.2]} 27. a4 {[%clk 0:00:55.1]}
27... Qxb7 {[%clk 0:00:49.4]} 28. Bxb7 {[%clk 0:00:56]} 28... Re7 {[%clk
0:00:49.9]} 29. Rd8+ {[%clk 0:00:53.8]} 29... Kg7 {[%clk 0:00:50.2]} 30. Bd5
{[%clk 0:00:53.7]} 30... Rd2 {[%clk 0:00:46.6]} 31. Kg2 {[%clk 0:00:46.4]} 31...
Ng6 {[%clk 0:00:41.5]} 32. Rg8+ {[%clk 0:00:34.7]} 32... Kh7 {[%clk 0:00:41.6]}
33. Bc4 {[%clk 0:00:31.1]} 33... Ne5 {[%clk 0:00:33.7]} 34. Rc8 {[%clk
0:00:29.4]} 34... Ng6 {[%clk 0:00:32.8]} 35. Bg8+ {[%clk 0:00:22.5]} 35... Kg7
{[%clk 0:00:32.5]} 36. Bc4 {[%clk 0:00:20.8]} 36... f4 {[%clk 0:00:32.8]} 37. h4
{[%clk 0:00:19.2]} 37... fxg3 {[%clk 0:00:26.2]} 38. Kxg3 {[%clk 0:00:20.1]}
38... Ne5 {[%clk 0:00:22.8]} 39. Rg8+ {[%clk 0:00:18.7]} 39... Kh7 {[%clk
0:00:23.4]} 40. Rc8 {[%clk 0:00:19.6]} 40... Rg7+ {[%clk 0:00:20.6]} 41. Kh3
{[%clk 0:00:18.6]} 41... Rd4 {[%clk 0:00:18.6]} 42. Be6 {[%clk 0:00:10.3]} 42...
Rf4 {[%clk 0:00:16.6]} 43. f3 {[%clk 0:00:06.7]} 43... Nxf3 {[%clk 0:00:14.7]}
44. Bd5 {[%clk 0:00:05.9]} 44... Rxh4# {[%clk 0:00:14.9]} 0-1

[Event "Early-Titled-Tuesday-Blitz-May-14-2024"]
[Site "Chess.com"]
[Date "2024.05.14"]
[Round "2"]
[White "yuriydovzik"]
[Black "LuisFSiles"]
[Result "1-0"]
[WhiteElo "2153"]
[BlackElo "2456"]
[TimeControl "180+1"]
[EndTime "8:18:32 PDT"]
[Termination "yuriydovzik won by resignation"]

1. Nf3 {[%clk 0:02:59]} 1... Nf6 {[%clk 0:02:59.2]} 2. b3 {[%clk 0:02:57.8]}
2... g6 {[%clk 0:02:58.5]} 3. Bb2 {[%clk 0:02:57.5]} 3... Bg7 {[%clk 0:02:58.9]}
4. g3 {[%clk 0:02:56.5]} 4... O-O {[%clk 0:02:58.8]} 5. Bg2 {[%clk 0:02:56.3]}
5... c5 {[%clk 0:02:59.4]} 6. O-O {[%clk 0:02:54.8]} 6... Nc6 {[%clk 0:02:56.8]}
7. c4 {[%clk 0:02:52.1]} 7... d6 {[%clk 0:02:56.8]} 8. h3 {[%clk 0:02:49.4]}
8... e5 {[%clk 0:02:52.4]} 9. d3 {[%clk 0:02:43.5]} 9... h6 {[%clk 0:02:42.7]}
10. Nbd2 {[%clk 0:02:29.2]} 10... Nh7 {[%clk 0:02:32.6]} 11. Ne1 {[%clk
0:02:14]} 11... f5 {[%clk 0:02:28.2]} 12. f4 {[%clk 0:02:10.4]} 12... g5 {[%clk
0:02:20.7]} 13. e3 {[%clk 0:02:03.3]} 13... Be6 {[%clk 0:02:05.6]} 14. Rc1
{[%clk 0:01:49.6]} 14... Kh8 {[%clk 0:01:51.6]} 15. Kh2 {[%clk 0:01:46]} 15...
Qe8 {[%clk 0:01:39.5]} 16. Ndf3 {[%clk 0:01:41.8]} 16... exf4 {[%clk 0:01:26.7]}
17. Bxg7+ {[%clk 0:01:39.5]} 17... Kxg7 {[%clk 0:01:26.4]} 18. gxf4 {[%clk
0:01:32.1]} 18... g4 {[%clk 0:01:22.7]} 19. Ng1 {[%clk 0:01:18.7]} 19... h5
{[%clk 0:01:19.7]} 20. Qd2 {[%clk 0:01:11.5]} 20... Nf6 {[%clk 0:01:12.2]} 21.
Ne2 {[%clk 0:01:05.2]} 21... Rg8 {[%clk 0:01:10.6]} 22. Rg1 {[%clk 0:01:05]}
22... Kf7 {[%clk 0:01:06.6]} 23. d4 {[%clk 0:01:00.7]} 23... gxh3 {[%clk
0:00:55]} 24. Bxh3 {[%clk 0:00:58.2]} 24... d5 {[%clk 0:00:44.1]} 25. Nf3 {[%clk
0:00:53.4]} 25... Ng4+ {[%clk 0:00:42.4]} 26. Bxg4 {[%clk 0:00:52.5]} 26... hxg4
{[%clk 0:00:36.6]} 27. Ng5+ {[%clk 0:00:50.3]} 27... Rxg5 {[%clk 0:00:36.5]} 28.
fxg5 {[%clk 0:00:50]} 28... Qh8+ {[%clk 0:00:35.8]} 29. Kg2 {[%clk 0:00:49.1]}
29... Qh3+ {[%clk 0:00:34]} 30. Kf2 {[%clk 0:00:48.9]} 30... Re8 {[%clk
0:00:18.5]} 31. Rg3 {[%clk 0:00:47.9]} 31... Qh2+ {[%clk 0:00:17.1]} 32. Rg2
{[%clk 0:00:47.9]} 32... Qh3 {[%clk 0:00:16.2]} 33. Rg3 {[%clk 0:00:43.5]} 33...
Qh2+ {[%clk 0:00:16.5]} 34. Rg2 {[%clk 0:00:43.3]} 34... Qh4+ {[%clk 0:00:17.1]}
35. Rg3 {[%clk 0:00:43.4]} 35... Qxg5 {[%clk 0:00:18]} 36. Rh1 {[%clk
0:00:39.1]} 36... cxd4 {[%clk 0:00:18.1]} 37. Nxd4 {[%clk 0:00:38.4]} 37... Ne5
{[%clk 0:00:17.6]} 38. Rh7+ {[%clk 0:00:34.5]} 38... Kg6 {[%clk 0:00:16.4]} 39.
Rh2 {[%clk 0:00:32]} 39... Rf8 {[%clk 0:00:14.9]} 40. Nxe6 {[%clk 0:00:29.8]}
40... Qf6 {[%clk 0:00:08.5]} 41. Nxf8+ {[%clk 0:00:29.3]} 41... Qxf8 {[%clk
0:00:08.7]} 42. Qxd5 {[%clk 0:00:27.8]} 42... Qf6 {[%clk 0:00:06.8]} 43. Qxb7
{[%clk 0:00:23.8]} 43... Nf7 {[%clk 0:00:06.5]} 44. Qd5 {[%clk 0:00:15.4]} 44...
Qb2+ {[%clk 0:00:05.9]} 45. Kg1 {[%clk 0:00:14.9]} 45... Qc1+ {[%clk 0:00:05.9]}
46. Kg2 {[%clk 0:00:14.5]} 46... Qxe3 {[%clk 0:00:05.8]} 47. Rxe3 {[%clk
0:00:11]} 1-0

[Event "Early-Titled-Tuesday-Blitz-May-14-2024"]
[Site "Chess.com"]
[Date "2024.05.14"]
[Round "2"]
[White "Artem_Koval"]
[Black "chesslh93"]
[Result "1-0"]
[WhiteElo "2552"]
[BlackElo "2336"]
[TimeControl "180+1"]
[EndTime "8:18:33 PDT"]
[Termination "Artem_Koval won on time"]

1. d4 {[%clk 0:03:00.9]} 1... d5 {[%clk 0:02:46.3]} 2. c4 {[%clk 0:03:00.2]}
2... e6 {[%clk 0:02:43.3]} 3. Nf3 {[%clk 0:03:00.3]} 3... Nf6 {[%clk 0:02:43.6]}
4. g3 {[%clk 0:03:00.6]} 4... Be7 {[%clk 0:02:43.5]} 5. Bg2 {[%clk 0:03:00.9]}
5... O-O {[%clk 0:02:44.1]} 6. O-O {[%clk 0:03:01.1]} 6... dxc4 {[%clk 0:02:45]}
7. Qc2 {[%clk 0:03:00]} 7... a6 {[%clk 0:02:45.3]} 8. a4 {[%clk 0:02:59.4]} 8...
Bd7 {[%clk 0:02:45.6]} 9. Nc3 {[%clk 0:02:58]} 9... Bc6 {[%clk 0:02:45.4]} 10.
Rd1 {[%clk 0:02:58.6]} 10... Bxf3 {[%clk 0:02:43.9]} 11. Bxf3 {[%clk 0:02:59.5]}
11... Nc6 {[%clk 0:02:44.6]} 12. Bxc6 {[%clk 0:03:00.1]} 12... bxc6 {[%clk
0:02:45.5]} 13. Bf4 {[%clk 0:02:42.4]} 13... a5 {[%clk 0:02:25.7]} 14. e4 {[%clk
0:02:32.4]} 14... Rb8 {[%clk 0:02:18.7]} 15. Ne2 {[%clk 0:02:26.8]} 15... Qd7
{[%clk 0:02:06.3]} 16. f3 {[%clk 0:02:25.8]} 16... c5 {[%clk 0:01:44.5]} 17.
dxc5 {[%clk 0:01:52.1]} 17... Bxc5+ {[%clk 0:01:36.9]} 18. Kg2 {[%clk
0:01:52.4]} 18... Qe7 {[%clk 0:01:14]} 19. Be5 {[%clk 0:01:35.4]} 19... Nd7
{[%clk 0:00:11]} 20. Bxc7 {[%clk 0:01:34]} 20... Ra8 {[%clk 0:00:03.2]} 21. Qxc4
{[%clk 0:01:25]} 21... Rfc8 {[%clk 0:00:03.6]} 22. Bf4 {[%clk 0:01:25.4]} 22...
Be3 {[%clk 0:00:01.1]} 23. Qd3 {[%clk 0:01:17.1]} 23... Bxf4 {[%clk 0:00:02]}
24. Qxd7 {[%clk 0:01:16.8]} 24... Qxd7 {[%clk 0:00:01.8]} 25. Rxd7 {[%clk
0:01:17.7]} 25... Rc7 {[%clk 0:00:02.2]} 26. Rad1 {[%clk 0:01:12.5]} 26... Rxd7
{[%clk 0:00:02.1]} 27. Rxd7 {[%clk 0:01:13.4]} 27... Be5 {[%clk 0:00:03]} 28. b3
{[%clk 0:01:10.3]} 28... g6 {[%clk 0:00:03.2]} 29. f4 {[%clk 0:01:03.9]} 29...
Bb2 {[%clk 0:00:03.4]} 30. Rb7 {[%clk 0:00:50.1]} 30... Rc8 {[%clk 0:00:03.4]}
31. Rb5 {[%clk 0:00:40.6]} 31... Rc2 {[%clk 0:00:03.3]} 32. Kf3 {[%clk
0:00:41.2]} 32... Rd2 {[%clk 0:00:02.7]} 33. Ke3 {[%clk 0:00:41.2]} 33... Rd1
{[%clk 0:00:01.9]} 34. Rxa5 {[%clk 0:00:39.6]} 34... Rh1 {[%clk 0:00:02.2]} 35.
h4 {[%clk 0:00:38.7]} 35... h5 {[%clk 0:00:02.1]} 36. Rb5 {[%clk 0:00:36.2]}
36... Ra1 {[%clk 0:00:01.4]} 37. a5 {[%clk 0:00:35.8]} 37... Kg7 {[%clk
0:00:01.3]} 38. b4 {[%clk 0:00:35.9]} 38... Ba3 {[%clk 0:00:00.7]} 39. Rb7
{[%clk 0:00:34.4]} 39... Kf8 {[%clk 0:00:00.4]} 40. Nd4 {[%clk 0:00:29]} 40...
Ke8 {[%clk 0:00:00.3]} 41. Nc6 {[%clk 0:00:28.2]} 41... Bc1+ {[%clk 0:00:00.5]}
42. Kd3 {[%clk 0:00:27.5]} 42... Ra3+ {[%clk 0:00:00.3]} 43. Kc4 {[%clk
0:00:27.8]} 43... Rxg3 {[%clk 0:00:00.4]} 44. a6 {[%clk 0:00:28.1]} 44... Be3
{[%clk 0:00:00.4]} 45. b5 {[%clk 0:00:25.4]} 45... Rg4 {[%clk 0:00:00.4]} 46. b6
{[%clk 0:00:25.2]} 1-0

[Event "Early-Titled-Tuesday-Blitz-May-14-2024"]
[Site "Chess.com"]
[Date "2024.05.14"]
[Round "2"]
[White "AttilaTurzo"]
[Black "akanga001"]
[Result "1-0"]
[WhiteElo "2478"]
[BlackElo "2155"]
[TimeControl "180+1"]
[EndTime "8:18:36 PDT"]
[Termination "AttilaTurzo won on time"]

1. d4 {[%clk 0:03:00.9]} 1... d5 {[%clk 0:02:56.8]} 2. c4 {[%clk 0:02:58.6]}
2... dxc4 {[%clk 0:02:55.4]} 3. e3 {[%clk 0:02:54.6]} 3... e5 {[%clk 0:02:53.7]}
4. Bxc4 {[%clk 0:02:50]} 4... exd4 {[%clk 0:02:53]} 5. Nf3 {[%clk 0:02:48.9]}
5... Nf6 {[%clk 0:02:52.6]} 6. O-O {[%clk 0:02:47.8]} 6... Be7 {[%clk
0:02:50.2]} 7. Qxd4 {[%clk 0:02:35.7]} 7... O-O {[%clk 0:02:48.5]} 8. Nc3 {[%clk
0:02:33.4]} 8... Bg4 {[%clk 0:02:39.7]} 9. Qxd8 {[%clk 0:02:25.6]} 9... Rxd8
{[%clk 0:02:38.4]} 10. Ne5 {[%clk 0:02:26.1]} 10... Bh5 {[%clk 0:02:36]} 11. e4
{[%clk 0:02:18.7]} 11... Nbd7 {[%clk 0:02:35.5]} 12. Nxd7 {[%clk 0:02:15.7]}
12... Rxd7 {[%clk 0:02:34.5]} 13. Be3 {[%clk 0:02:10.8]} 13... a6 {[%clk
0:02:31]} 14. f3 {[%clk 0:02:09.9]} 14... Rad8 {[%clk 0:02:29]} 15. a4 {[%clk
0:02:04.9]} 15... Bb4 {[%clk 0:02:13.4]} 16. Kf2 {[%clk 0:01:50.2]} 16... Bg6
{[%clk 0:02:07.9]} 17. Ke2 {[%clk 0:01:46.7]} 17... Bd6 {[%clk 0:01:44.9]} 18.
g3 {[%clk 0:01:35.6]} 18... Be5 {[%clk 0:01:26.1]} 19. Rac1 {[%clk 0:01:06.4]}
19... Bxc3 {[%clk 0:01:24.4]} 20. Rxc3 {[%clk 0:01:01.7]} 20... c6 {[%clk
0:01:13.5]} 21. Bb6 {[%clk 0:00:55.2]} 21... Re8 {[%clk 0:01:10.5]} 22. Re3
{[%clk 0:00:52.1]} 22... Rde7 {[%clk 0:01:03.8]} 23. Bc5 {[%clk 0:00:38.5]}
23... Rd7 {[%clk 0:01:02.9]} 24. Rd1 {[%clk 0:00:30.9]} 24... Red8 {[%clk
0:00:56.5]} 25. Rxd7 {[%clk 0:00:29.2]} 25... Nxd7 {[%clk 0:00:51.8]} 26. Bd4
{[%clk 0:00:26.1]} 26... b5 {[%clk 0:00:47]} 27. axb5 {[%clk 0:00:21.7]} 27...
axb5 {[%clk 0:00:46]} 28. Ba2 {[%clk 0:00:19.7]} 28... c5 {[%clk 0:00:45.8]} 29.
Bc3 {[%clk 0:00:19.3]} 29... c4 {[%clk 0:00:45]} 30. Bd4 {[%clk 0:00:15]} 30...
Nb8 {[%clk 0:00:41.4]} 31. Bc5 {[%clk 0:00:13.1]} 31... Nd7 {[%clk 0:00:38.8]}
32. Bd4 {[%clk 0:00:10.4]} 32... Rc8 {[%clk 0:00:32.9]} 33. Rc3 {[%clk
0:00:09.5]} 33... Nc5 {[%clk 0:00:31.1]} 34. Ke3 {[%clk 0:00:07]} 34... Na4
{[%clk 0:00:30]} 35. Rc2 {[%clk 0:00:06.3]} 35... Kf8 {[%clk 0:00:25.3]} 36. b3
{[%clk 0:00:06.5]} 36... cxb3 {[%clk 0:00:20.3]} 37. Rxc8+ {[%clk 0:00:05.9]}
37... Ke7 {[%clk 0:00:16.6]} 38. Bxb3 {[%clk 0:00:06.1]} 38... f6 {[%clk
0:00:10.8]} 39. Rb8 {[%clk 0:00:05.9]} 39... Kd6 {[%clk 0:00:09]} 40. Rxb5
{[%clk 0:00:06]} 40... Bf7 {[%clk 0:00:04]} 41. Bxa4 {[%clk 0:00:05.5]} 41...
Be8 {[%clk 0:00:03.2]} 42. Rd5+ {[%clk 0:00:05.6]} 42... Ke7 {[%clk 0:00:02.1]}
43. Bc5+ {[%clk 0:00:06]} 1-0